fUST/lending_fUST_20240923
["ID","MTS","AMOUNT","RATE_DAILY","PERIOD"]
[338906884,1727055953255,-151.0,0.00032082,120]
[338906885,1727055953277,-198.816,0.00032575,33]
[338906886,1727055953300,-151.0,0.00032575,120]
[338906887,1727055953321,-5217.45,0.00033014,3]
[338906888,1727055953341,-4347.88,0.00033014,3]
[338906889,1727055953362,-3623.23,0.00033014,3]
[338906890,1727055953384,-402.665589,0.00033165,2]
[338906891,1727055953405,-3607.58441332,0.00033271,60]
[338906892,1727055953428,-630.58111481,0.00033786,2]
[338906893,1727055953450,-151.0,0.00033863,120]
[338906894,1727055953472,-151.0,0.00034164,120]
[338906895,1727055953491,-5150.0,0.000345,30]
[338906896,1727055953511,-10000.0,0.00035,30]
[338906897,1727055953533,-1318.58884869,0.00035,120]
[338906899,1727056029129,-269.847,0.00032085,2]
[338906900,1727056029150,-1681.41115131,0.00035,120]
[338906901,1727056029171,-151.0,0.00035151,120]
[338906902,1727056029193,-754.80104251,0.00035155,2]
[338906903,1727056029215,-3019.36,0.0003527,3]
[338906904,1727056029238,-2516.13,0.0003527,3]
[338906905,1727056029260,-24327.2717673,0.0003528,5]
[338906906,1727056029281,-8962.1080621,0.0003528,5]
[338906907,1727056147158,-315.29055744,0.00032925,2]
[338906908,1727056147181,-315.2905574,0.00034207,2]
[338906909,1727056147203,-368.44622079,0.0003529,3]
[338907065,1727056238466,-24900.0,0.00030619,2]
[338907066,1727056238476,-59123.65793767,0.00033025,60]
[338907067,1727056238485,-150.0,0.00033025,14]
[338907068,1727056238494,-150.0,0.00033025,14]
[338907069,1727056238503,-200.0,0.00033025,14]
[338907070,1727056238512,-629.00086876,0.00035155,2]
[338907071,1727056238522,-1603.48,0.0003529,3]
[338907072,1727056238531,-1768.12,0.0003529,3]
[338907073,1727056238540,-1473.44,0.0003529,3]
[338907074,1727056238549,-151.0,0.0003529,14]
[338907075,1727056238558,-153.477402,0.0003529,14]
[338907076,1727056238567,-24138.25,0.000353,14]
[338907077,1727056238576,-9881.79,0.000353,14]
[338907078,1727056238586,-5558.65,0.000353,14]
[338907079,1727056238595,-152.15,0.000354,31]
[338907080,1727056238605,-152.15,0.000354,31]
[338907081,1727056238614,-152.15,0.000354,31]
[338907082,1727056238623,-152.15,0.000354,31]
[338907083,1727056238632,-152.15,0.000354,31]
[338907084,1727056238642,-1000.0,0.00035476,2]
[338907085,1727056238651,-151.0,0.00035497,15]
[338907086,1727056238660,-23110.9081789,0.00035557,5]
[338907087,1727056238669,-9627.80085867,0.00035557,5]
[338907088,1727056239146,-10222.62963423,0.00035557,5]
[338907092,1727056240211,-25830.5940993,0.00035557,5]
[338907093,1727056240221,-1618.502531,0.00035616,120]
[338907094,1727056240231,-400.0,0.00035616,2]
[338907095,1727056240240,-150.112233,0.00036,9]
[338907096,1727056240249,-154.0,0.00036,2]
[338907097,1727056240258,-152.43480147,0.00036098,16]
[338907098,1727056240268,-151.0,0.00036247,120]
[338907099,1727056240277,-151.0,0.00036438,120]
[338907100,1727056240287,-151.0,0.00036897,15]
[338907101,1727056240295,-150.112233,0.00037,9]
[338907102,1727056240304,-154.0,0.00037397,2]
[338907103,1727056240313,-151.0,0.00037726,120]
[338907104,1727056240323,-154.197832,0.0003789,2]
[338907105,1727056240332,-253.667941,0.0003789,2]
[338907107,1727056240341,-213.6823897,0.0003789,2]
[338907108,1727056240350,-153.0,0.0003789,2]
[338907110,1727056240359,-154.5341713,0.0003789,2]
[338907112,1727056240368,-208.9234097,0.0003789,2]
[338907113,1727056240377,-153.0,0.0003789,2]
[338907114,1727056240386,-208.9234097,0.0003789,2]
[338907115,1727056240395,-150.112233,0.00038,9]
[338907116,1727056240405,-150.112235,0.000382,9]
[338907117,1727056240415,-407.51019591,0.00038229,2]
[338907118,1727056240424,-316.1504762,0.00038236,60]
[338907119,1727056240433,-151.0,0.00038297,15]
[338907120,1727056240442,-571.33924397,0.00038305,15]
[338907121,1727056240459,-36769.59842378,0.00038306,5]
[338907122,1727056240537,-4631.32544702,0.00038306,5]
[338907140,1727056243283,-823.93901099,0.00034,120]
[338907142,1727056243292,-1339.30615021,0.00038306,5]
[338907175,1727056288498,2165.0,0.00025,120]
[338907177,1727056331951,335.79198,0.00025,120]
[338907223,1727057157154,-950.6217065,0.00018654,2]
[338907224,1727057157177,-3000.0,0.000216,2]
[338907225,1727057157199,-3000.0,0.0002161,2]
[338907226,1727057157221,-300.0,0.00021619,2]
[338907227,1727057157245,-300.0,0.00021619,2]
[338907228,1727057157267,-5300.780635,0.0002162,2]
[338907229,1727057157290,-300.0,0.00023502,2]
[338907230,1727057157312,-309.0,0.00023781,2]
[338907231,1727057157332,-302.427733,0.000244,11]
[338907232,1727057157353,-208.005806,0.00025668,2]
[338907233,1727057157375,-250.0,0.00026042,2]
[338907234,1727057157397,-250.0,0.00026113,2]
[338907235,1727057157420,-250.0,0.00026185,2]
[338907236,1727057157442,-250.0,0.00026256,2]
[338907237,1727057157463,-250.0,0.00026327,2]
[338907238,1727057157484,-250.0,0.00026399,2]
[338907239,1727057157510,-250.0,0.0002647,2]
[338907240,1727057157532,-250.0,0.00026542,2]
[338907241,1727057157556,-250.0,0.00026613,2]
[338907242,1727057157580,-250.0,0.00026685,2]
[338907243,1727057157603,-250.0,0.00026756,2]
[338907244,1727057157626,-250.0,0.00026827,2]
[338907245,1727057157650,-250.0,0.00026899,2]
[338907246,1727057157674,-250.0,0.0002697,2]
[338907247,1727057157698,-250.0,0.00027042,2]
[338907248,1727057157720,-250.0,0.00027113,2]
[338907249,1727057157742,-250.0,0.00027185,2]
[338907250,1727057157764,-250.0,0.00027256,2]
[338907251,1727057157785,-250.0,0.00027327,2]
[338907252,1727057157808,-500.0,0.00027397,2]
[338907253,1727057157833,-250.0,0.00027399,2]
[338907254,1727057157854,-150.0,0.000278,2]
[338907255,1727057157874,-151.0,0.0003,120]
[338907256,1727057157894,-151.0,0.0003,120]
[338907257,1727057157915,-151.0,0.00031397,120]
[338907258,1727057157937,-151.0,0.00032219,120]
[338907259,1727057157959,-367.6491868,0.00032695,2]
[338907260,1727057157981,-24900.0,0.0003277,2]
[338907261,1727057158002,-95.52297512,0.00032795,120]
[338907269,1727057236134,-394.797263,0.00027397,2]
[338907270,1727057236156,-55.47702488,0.00032795,120]
[338907271,1727057236180,-394.797263,0.00033165,2]
[338907272,1727057236201,-159.052,0.00033877,37]
[338907273,1727057236224,-151.0,0.00034131,15]
[338907274,1727057236246,-151.0,0.00034192,120]
[338907275,1727057236269,-151.0,0.00034438,120]
[338907276,1727057236290,-448.993588,0.00034896,2]
[338907277,1727057236311,-151.0,0.00035524,15]
[338907278,1727057236333,-166.250462,0.00035556,2]
[338907279,1727057236356,-448.993588,0.00035581,2]
[338907280,1727057236377,-151.0,0.00035589,120]
[338907281,1727057236400,-400.0,0.00035616,2]
[338907282,1727057236421,-1625.611387,0.00035616,120]
[338907283,1727057236444,-154.0,0.00036,2]
[338907284,1727057236466,-448.993588,0.00036266,2]
[338907285,1727057236487,-151.0,0.00036658,120]
[338907286,1727057236509,-152.43480147,0.0003675,18]
[338907287,1727057236530,-151.0,0.00036917,15]
[338907288,1727057236550,-151.0,0.00036986,120]
[338907289,1727057236571,-417.8468194,0.00037068,2]
[338907290,1727057236591,-153.0,0.00037068,2]
[338907291,1727057236613,-306.0,0.00037068,2]
[338907292,1727057236633,-154.0,0.00037397,2]
[338907293,1727057236654,-208.9234097,0.0003789,2]
[338907294,1727057236674,-406.667941,0.0003789,2]
[338907295,1727057236695,-153.0,0.0003789,2]
[338907296,1727057236716,-153.0,0.0003789,2]
[338907297,1727057236737,-424.19329807,0.00038185,2]
[338907298,1727057236757,-269.05180869,0.00038185,2]
[338907299,1727057236778,-244.93,0.000382,7]
[338907300,1727057236798,-331.82113807,0.000382,14]
[338907320,1727057363100,-7288.255002,0.0002,2]
[338907355,1727057432373,-300.0,0.00019999,2]
[338907357,1727057432383,-300.0,0.00019999,2]
[338907359,1727057432393,-500.0,0.00019999,2]
[338907361,1727057432402,-424.8913274,0.00019999,2]
[338907363,1727057432411,-217.41773188,0.00019999,2]
[338907365,1727057432420,-500.0,0.00019999,2]
[338907367,1727057432430,-604.50245601,0.00019999,2]
[338907369,1727057432439,-500.0,0.00019999,2]
[338907371,1727057432448,-13598.88664244,0.0002,9]
[338907373,1727057432457,-4095.86274019,0.0002,9]
[338907374,1727057432466,-154672.6656769,0.0002,2]
[338907383,1727057432543,-3952.83999749,0.0002,2]
[338907513,1727057438767,-500.0,0.00019999,2]
[338907514,1727057438778,-500.0,0.00019999,2]
[338907515,1727057438788,-500.0,0.00019999,2]
[338907516,1727057438797,-500.0,0.00019999,2]
[338907517,1727057438807,-500.0,0.00019999,2]
[338907518,1727057438816,-500.0,0.00019999,2]
[338907519,1727057438826,-500.0,0.00019999,2]
[338907520,1727057438835,-357.44765251,0.00019999,2]
[338907521,1727057438845,-500.0,0.00019999,2]
[338907522,1727057438854,-500.0,0.00019999,2]
[338907523,1727057438864,-500.0,0.00019999,2]
[338907524,1727057438873,-500.0,0.00019999,2]
[338907525,1727057438883,-500.0,0.00019999,2]
[338907526,1727057438892,-500.0,0.00019999,2]
[338907527,1727057438901,-500.0,0.00019999,2]
[338907528,1727057438911,-500.0,0.00019999,2]
[338907529,1727057438921,-500.0,0.00019999,2]
[338907530,1727057438930,-500.0,0.00019999,2]
[338907531,1727057438939,-500.0,0.00019999,2]
[338907532,1727057438948,-500.0,0.00019999,2]
[338907533,1727057438958,-500.0,0.00019999,2]
[338907534,1727057438967,-500.0,0.00019999,2]
[338907535,1727057438978,-500.0,0.00019999,2]
[338907536,1727057438987,-500.0,0.00019999,2]
[338907537,1727057438996,-500.0,0.00019999,2]
[338907538,1727057439006,-500.0,0.00019999,2]
[338907539,1727057439015,-500.0,0.00019999,2]
[338907540,1727057439024,-500.0,0.00019999,2]
[338907541,1727057439033,-500.0,0.00019999,2]
[338907543,1727057439043,-500.0,0.00019999,2]
[338907544,1727057439052,-500.0,0.00019999,2]
[338907545,1727057439061,-500.0,0.00019999,2]
[338907547,1727057439070,-500.0,0.00019999,2]
[338907548,1727057439079,-500.0,0.00019999,2]
[338907549,1727057439089,-500.0,0.00019999,2]
[338907550,1727057439099,-500.0,0.00019999,2]
[338907551,1727057439108,-500.0,0.00019999,2]
[338907552,1727057439118,-500.0,0.00019999,2]
[338907553,1727057439127,-500.0,0.00019999,2]
[338907554,1727057439136,-330.54986368,0.00019999,2]
[338907555,1727057439149,-169.45013632,0.00019999,2]
[338907556,1727057439159,-500.0,0.00019999,2]
[338907557,1727057439168,-500.0,0.00019999,2]
[338907558,1727057439177,-500.0,0.00019999,2]
[338907559,1727057439186,-500.0,0.00019999,2]
[338907560,1727057439196,-500.0,0.00019999,2]
[338907561,1727057439205,-29974.26223817,0.0002,2]
[338907562,1727057439712,-6796.86038403,0.0002,2]
[338907563,1727057439725,-2142.0,0.0002,2]
[338907565,1727057440055,-1031.09282003,0.0002,2]
[338907575,1727057440544,-279070.0473317,0.0002,2]
[338907591,1727057443623,-43405.56293941,0.0002,2]
[338907648,1727058350118,-2356.7563539,0.00016821,2]
[338907649,1727058350141,-161.560669,0.00017219,2]
[338907650,1727058350169,-161.560669,0.00017309,2]
[338907651,1727058350190,-2684.6382365,0.00017313,2]
[338907652,1727058350212,-154.63011046,0.00017326,2]
[338907653,1727058350236,-161.560669,0.00017399,2]
[338907654,1727058350257,-2700.502625,0.00017426,2]
[338907655,1727058350280,-161.560669,0.00017488,2]
[338907656,1727058350303,-161.560669,0.00017578,2]
[338907657,1727058350326,-313.289476,0.00017644,2]
[338907658,1727058350349,-161.560669,0.00017668,2]
[338907659,1727058350372,-250.0,0.00017696,2]
[338907660,1727058350395,-161.560669,0.00017758,2]
[338907661,1727058350423,-154.63011046,0.00017811,2]
[338907662,1727058350445,-161.560669,0.00017847,2]
[338907663,1727058350468,-161.560669,0.00017937,2]
[338907664,1727058350640,-161.560669,0.00018027,2]
[338907665,1727058350668,-161.560669,0.00018116,2]
[338907666,1727058350693,-154.63011046,0.00018297,2]
[338907667,1727058350714,-928.4693125,0.00018403,2]
[338907668,1727058350738,-300.0,0.00018436,2]
[338907669,1727058350762,-300.0,0.00018436,2]
[338907670,1727058350786,-3323.79867155,0.00018437,2]
[338907671,1727058391100,-835.49101857,0.00018437,2]
[338907827,1727058549330,-478.45338864,0.000167,2]
[338907828,1727058549352,-20740.71030988,0.00018437,2]
[338907829,1727058549373,-3939.216665,0.00018514,2]
[338907830,1727058549393,-166.917113,0.00019178,2]
[338907831,1727058549413,-166.250462,0.00019178,2]
[338907832,1727058549434,-3939.216665,0.00019199,2]
[338907833,1727058549454,-339.35463844,0.0001988,2]
[338907834,1727058549474,-3939.216665,0.00019884,2]
[338907835,1727058549494,-339.35463843,0.00019885,2]
[338907836,1727058549513,-339.35463843,0.0001989,2]
[338907837,1727058549533,-339.35463843,0.00019895,2]
[338907838,1727058549554,-339.35463843,0.000199,2]
[338907839,1727058549577,-500.0,0.00019979,2]
[338907840,1727058549600,-500.0,0.00019979,2]
[338907841,1727058549624,-500.0,0.00019979,2]
[338907842,1727058549648,-500.0,0.00019979,2]
[338907843,1727058549670,-500.0,0.00019979,2]
[338907844,1727058549692,-500.0,0.00019979,2]
[338907845,1727058549715,-500.0,0.00019979,2]
[338907846,1727058549744,-500.0,0.00019979,2]
[338907847,1727058549766,-500.0,0.00019979,2]
[338907848,1727058549791,-500.0,0.00019979,2]
[338907849,1727058549816,-500.0,0.00019979,2]
[338907850,1727058549840,-500.0,0.00019979,2]
[338907851,1727058549862,-500.0,0.00019979,2]
[338907852,1727058549886,-500.0,0.00019979,2]
[338907853,1727058549909,-500.0,0.00019979,2]
[338907854,1727058549933,-500.0,0.00019979,2]
[338907855,1727058549956,-500.0,0.00019979,2]
[338907857,1727058549978,-418.18480189,0.00019979,2]
[338907858,1727058550002,-500.0,0.00019979,2]
[338907859,1727058550024,-500.0,0.00019979,2]
[338907860,1727058550048,-500.0,0.00019979,2]
[338907861,1727058550071,-500.0,0.00019979,2]
[338907862,1727058550094,-500.0,0.00019979,2]
[338907863,1727058550116,-500.0,0.00019979,2]
[338907864,1727058550139,-500.0,0.00019979,2]
[338907865,1727058550160,-500.0,0.00019979,2]
[338907866,1727058550183,-500.0,0.00019979,2]
[338907867,1727058550206,-500.0,0.00019979,2]
[338907868,1727058550228,-550.0,0.00019979,2]
[338907869,1727058550251,-500.0,0.00019979,2]
[338907871,1727058550430,-500.0,0.00019979,2]
[338907872,1727058550454,-500.0,0.00019979,2]
[338907873,1727058550477,-500.0,0.00019979,2]
[338907874,1727058550499,-500.0,0.00019979,2]
[338907875,1727058550521,-500.0,0.00019979,2]
[338907876,1727058550544,-20986.73427999,0.0001998,3]
[338907884,1727058555186,-6869.51080681,0.0001998,3]
[338907885,1727058555208,-18001.68924608,0.0001998,3]
[338907899,1727058564165,-20411.609589,0.0001998,3]
[338907900,1727058567159,-407.51019591,0.000199,2]
[338907901,1727058567182,-3312.68682792,0.0001998,3]
[338907902,1727058567204,-500.0,0.00019989,2]
[338907903,1727058567223,-297.42392917,0.00019989,2]
[338907904,1727058567244,-152.19241231,0.00019989,2]
[338907905,1727058567266,-473.1517192,0.00019989,2]
[338907906,1727058567291,-500.0,0.00019989,2]
[338907907,1727058567328,-48687.65691149,0.0001999,3]
[338907908,1727058571205,-90593.56852251,0.0001999,3]
[338907909,1727058571234,-208629.928315,0.0001999,3]
[338907910,1727058571261,-1000.0,0.00019999,2]
[338907911,1727058571287,-1000.0,0.00019999,2]
[338907912,1727058571314,-1000.0,0.00019999,2]
[338907913,1727058571340,-1000.0,0.00019999,2]
[338907914,1727058571365,-1000.0,0.00019999,2]
[338907915,1727058571390,-1030.66982218,0.00019999,2]
[338907916,1727058571416,-21196.43605592,0.0002,2]
[338907917,1727058571442,-33962.08113477,0.0002,2]
[338908158,1727058638874,-555.66906087,0.0001989,2]
[338908159,1727058638884,-309.26022092,0.000199,2]
[338908160,1727058638893,-500.0,0.00019999,2]
[338908161,1727058638902,-500.0,0.00019999,2]
[338908162,1727058638911,-500.0,0.00019999,2]
[338908163,1727058638920,-196.81848019,0.00019999,2]
[338908164,1727058638930,-500.0,0.00019999,2]
[338908165,1727058638939,-92029.06963863,0.0002,2]
[338908201,1727058644176,-2072.80234622,0.0002,2]
[338908202,1727058644234,-92.8323354,0.0002,2]
[338908308,1727058789182,1258.6093,0.00025,120]
[338908325,1727059367667,404.17,0.000141,2]
[338908326,1727059536156,-997.9093836,0.00016673,2]
[338908327,1727059551832,-546.4890279,0.00016673,2]
[338908329,1727059635124,-782.6168165,0.00016673,2]
[338908330,1727059635146,-300.0,0.00016827,2]
[338908331,1727059635168,-300.0,0.00016827,2]
[338908332,1727059635189,-11187.9157328,0.00016828,2]
[338908333,1727059635211,-165.028563,0.00017263,2]
[338908334,1727059635233,-165.028563,0.00017313,2]
[338908335,1727059635254,-3000.0,0.0001733,2]
[338908336,1727059635274,-2327.015228,0.00017358,2]
[338908337,1727059635296,-165.028563,0.00017363,2]
[338908338,1727059635319,-165.028563,0.00017413,2]
[338908339,1727059635344,-165.028563,0.00017463,2]
[338908340,1727059635366,-165.028563,0.00017513,2]
[338908341,1727059635389,-165.028563,0.00017563,2]
[338908342,1727059635411,-165.028563,0.00017613,2]
[338908343,1727059635557,-165.028563,0.00017663,2]
[338908344,1727059635581,-165.028563,0.00017713,2]
[338908345,1727059635603,-165.028563,0.00017763,2]
[338908346,1727059635624,-165.028563,0.00017813,2]
[338908347,1727059635646,-165.028563,0.00017863,2]
[338908348,1727059635667,-165.028563,0.00017913,2]
[338908349,1727059635689,-239.69775485,0.00017921,2]
[338908350,1727059640151,-126.23355715,0.00017921,2]
[338908351,1727059640174,-165.028563,0.00017963,2]
[338908352,1727059640196,-18454.09362485,0.00017965,2]
[338908353,1727059649103,-709.98498219,0.00017913,2]
[338908354,1727059649126,-6445.90637515,0.00017965,2]
[338908355,1727059649148,-165.028563,0.00018013,2]
[338908356,1727059649170,-2327.015228,0.00018043,2]
[338908357,1727059649192,-165.028563,0.00018063,2]
[338908358,1727059649217,-165.028563,0.00018113,2]
[338908359,1727059649238,-165.028563,0.00018163,2]
[338908360,1727059649272,-6783.67756594,0.00018324,2]
[338908361,1727059649296,-420.0,0.00018382,2]
[338908362,1727059649318,-6783.67756594,0.00018403,2]
[338908363,1727059649340,-157.45388874,0.00018687,7]
[338908364,1727059649364,-500.0,0.00018703,2]
[338908365,1727059649388,-405.51935083,0.00018703,2]
[338908366,1727059649410,-6783.67756594,0.00018738,2]
[338908367,1727059649434,-6783.67756594,0.00018966,2]
[338908368,1727059649456,-166.250462,0.00019178,2]
[338908369,1727059649477,-6783.67756594,0.00019301,2]
[338908370,1727059649502,-150.33327791,0.00019462,2]
[338908371,1727059649523,-6783.67756594,0.00019547,2]
[338908372,1727059649544,-219.07673951,0.000198,2]
[338908373,1727059649565,-500.0,0.000198,2]
[338908374,1727059649586,-330.14063406,0.000198,2]
[338908375,1727059649606,-500.0,0.000198,2]
[338908376,1727059649628,-195.7539088,0.0001989,2]
[338908377,1727059649652,-6783.67756598,0.00019971,2]
[338908378,1727059649674,-23367.2016012,0.0001998,3]
[338908379,1727059649696,-23367.2016012,0.0001999,3]
[338908380,1727059649717,-110751.82116528,0.0002,2]
[338908381,1727059649740,-150.112236,0.0002,2]
[338908382,1727059649761,-420.0,0.0002008,2]
[338908383,1727059649783,-500.0,0.00020169,2]
[338908384,1727059649803,-208.19675042,0.00020169,2]
[338908385,1727059649825,-371.40620344,0.00020169,2]
[338908386,1727059649847,-500.0,0.00020169,2]
[338908387,1727059649868,-23367.2016012,0.0002017,3]
[338908388,1727059649890,-709.98498213,0.0002134,2]
[338908389,1727059649911,-3000.0,0.000216,2]
[338908390,1727059649932,-3000.0,0.0002161,2]
[338908391,1727059649955,-3000.0,0.0002162,2]
[338908392,1727059649977,-3000.0,0.0002163,2]
[338908393,1727059649999,-3000.0,0.0002164,2]
[338908394,1727059650020,-5363.077297,0.0002165,2]
[338908395,1727059650046,-150.112233,0.000217,2]
[338908396,1727059650068,-1399.25524438,0.000218,2]
[338908397,1727059650091,-9122.10898312,0.00021826,3]
[338908398,1727059651132,-456.81796015,0.00021826,3]
[338908401,1727059754130,-151.0,0.00021836,2]
[338908402,1727059754152,-151.0,0.00021836,2]
[338908403,1727059754175,-152.526026,0.00021836,2]
[338908404,1727059754194,-151.0,0.00021836,2]
[338908405,1727059754215,-152.413761,0.00021836,2]
[338908406,1727059754239,-151.0,0.00021836,2]
[338908407,1727059754260,-151.0,0.00021836,2]
[338908408,1727059754283,-730.274538,0.00021836,2]
[338908409,1727059754305,-730.274538,0.00021836,2]
[338908410,1727059754325,-151.0,0.00021836,2]
[338908411,1727059754347,-151.0,0.00021836,2]
[338908412,1727059754367,-294.933607,0.00021836,2]
[338908413,1727059754388,-151.0,0.00021836,2]
[338908414,1727059754408,-151.0,0.00021836,2]
[338908415,1727059754430,-151.0,0.00021836,2]
[338908416,1727059754450,-168.2093062,0.00021918,2]
[338908417,1727059754472,-150.112233,0.000235,3]
[338908418,1727059754494,-709.98498213,0.00024766,2]
[338908419,1727059754515,-958.71612975,0.00025,30]
[338908420,1727059754535,-530.3639461,0.00025,30]
[338908421,1727059754555,-153.644877,0.00025,7]
[338908422,1727059754578,-198.669815,0.00025,7]
[338908423,1727059754599,-514.99969714,0.00025,30]
[338908424,1727059754620,-150.112233,0.000252,8]
[338908425,1727059754640,-666.17300873,0.00025298,2]
[338908426,1727059760107,-365.931312,0.00026882,2]
[338908427,1727059760130,-150.112233,0.000269,5]
[338908428,1727059760151,-226.222,0.00027057,15]
[338908429,1727059760174,-489.09161,0.00027397,2]
[338908430,1727059760200,-231.08531861,0.00027397,5]
[338908431,1727059760220,-150.0,0.000277,2]
[338908432,1727059760242,-709.98498213,0.00028193,2]
[338908433,1727059760262,-150.112233,0.000287,8]
[338908434,1727059760282,-200.0,0.00029575,15]
[338908435,1727059760303,-1210.30575349,0.0003,3]
[338908436,1727059760323,-150.112233,0.000304,7]
[338908437,1727059760344,-150.112235,0.00031,9]
[338908438,1727059760364,-153.324032,0.00031,8]
[338908439,1727059760386,-709.98498213,0.0003162,2]
[338908440,1727059790923,167.232654,0.00031017,2]
[338908442,1727059830235,150.0,0.000278,2]
[338908452,1727059832846,-150.112233,0.000321,6]
[338908453,1727059832856,-113.687767,0.000329,10]
[338908456,1727059838681,464.07626458,0.00025,120]
[338908475,1727059840857,-36.424466,0.000329,10]
[338908476,1727059840867,-11513.39810065,0.00032992,2]
[338908477,1727059841449,-2271.96060157,0.00032992,2]
[338908479,1727059843982,-797.07757733,0.00032992,2]
[338908485,1727059847300,-10317.56372045,0.00032992,2]
[338908486,1727059847310,-200.0,0.00033,2]
[338908487,1727059847319,-219.79509471,0.00033,2]
[338908488,1727059847329,-150.112233,0.00033,10]
[338908489,1727059847338,-154.0,0.00033,2]
[338908490,1727059847347,-150.0,0.00033021,14]
[338908491,1727059847357,-150.0,0.00033021,14]
[338908492,1727059847366,-200.0,0.00033021,14]
[338908493,1727059847375,-165.0311091,0.00033021,120]
[338908494,1727059847385,-811.10951549,0.00033021,30]
[338908495,1727059847394,-251.84319123,0.00033021,120]
[338908496,1727059847403,-982.26507416,0.00033021,60]
[338908497,1727059847412,-3000.0,0.00033021,100]
[338908498,1727059847422,-152.624381,0.00033029,14]
[338908499,1727059847431,-151.0,0.00033029,14]
[338908500,1727059847440,-489.09161,0.00033165,2]
[338908501,1727059847449,-440.0,0.0003366,120]
[338908502,1727059847458,-150.112233,0.000339,5]
[338908503,1727059847468,-155.0,0.00034521,2]
[338908504,1727059847478,-150.112233,0.000347,7]
[338908505,1727059847487,-2000.0,0.00035,120]
[338908506,1727059847497,-2000.0,0.00035,120]
[338908507,1727059847506,-2402.0,0.00035,120]
[338908508,1727059847516,-150.112233,0.00035,10]
[338908509,1727059847525,-709.98498213,0.00035047,2]
[338908510,1727059847535,-242.0,0.0003526,2]
[338908511,1727059847544,-150.112233,0.000356,10]
[338908512,1727059847553,-182.025941,0.00035601,14]
[338908513,1727059847563,-151.0,0.00035601,14]
[338908514,1727059847572,-151.0,0.00035601,14]
[338908515,1727059847581,-730.274538,0.00035601,14]
[338908516,1727059847591,-730.274538,0.00035601,14]
[338908517,1727059847600,-151.0,0.00035601,14]
[338908518,1727059847609,-151.0,0.00035601,14]
[338908519,1727059847619,-151.0,0.00035601,14]
[338908520,1727059847628,-154.074025,0.00035601,14]
[338908521,1727059847637,-151.0,0.00035601,14]
[338908522,1727059847646,-400.0,0.00035616,2]
[338908523,1727059847656,-1219.20854,0.00035616,120]
[338908524,1727059847665,-242.15834797,0.00035972,10]
[338908525,1727059847704,-257.84165203,0.00035972,10]
[338908526,1727059847714,-1824.97565297,0.00036,30]
[338908528,1727059892498,10000.0,0.000141,2]
[338908529,1727059901952,326.68076511,0.000141,2]
[338908530,1727059901975,1187.98337539,0.000141,2]
[338908531,1727059901996,185.3358595,0.000141,2]
[338908549,1727060336178,192.519242,0.00025,120]
[338908560,1727060749143,-300.0,0.00019899,2]
[338908561,1727060749165,-9505.58128916,0.000199,2]
[338908562,1727060759116,-396.50383116,0.000199,2]
[338908564,1727060820522,807.35397106,0.00012,2]
[338908565,1727060841143,-4362.10425562,0.000199,2]
[338908568,1727060945113,-3487.81062406,0.000199,2]
[338908569,1727060945133,-1000.0,0.0001998,2]
[338908570,1727060945154,-1000.0,0.0001998,2]
[338908571,1727060945175,-3000.0,0.000216,2]
[338908572,1727060945196,-4602.769512,0.0002161,2]
[338908573,1727060945216,-166.250462,0.00021858,2]